[Event "*** Titled Tuesday Blitz"]
[Site "Chess.com"]
[Date "2020.11.10"]
[Round "4"]
[White "GMJustin"]
[Black "cottage_cheese"]
[Result "0-1"]
[WhiteElo "2322"]
[BlackElo "2166"]
[TimeControl "180+1"]
[EndTime "10:41:44 PST"]
[Termination "cottage_cheese won on time"]

1. e4 {[%clk 0:02:46.6]} 1... e5 {[%clk 0:02:59.4]} 2. Nc3 {[%clk 0:02:37.5]}
2... Nf6 {[%clk 0:02:57.9]} 3. f4 {[%clk 0:02:31.6]} 3... d5 {[%clk 0:02:51.6]}
4. fxe5 {[%clk 0:02:26.2]} 4... Nxe4 {[%clk 0:02:46.2]} 5. Qf3 {[%clk
0:02:26.1]} 5... Nxc3 {[%clk 0:02:33.4]} 6. dxc3 {[%clk 0:02:24.4]} 6... Be7
{[%clk 0:02:28.6]} 7. Bf4 {[%clk 0:02:10.1]} 7... O-O {[%clk 0:01:59.9]} 8. Bd3
{[%clk 0:02:04.7]} 8... Re8 {[%clk 0:01:13.3]} 9. O-O-O {[%clk 0:01:42.7]} 9...
Be6 {[%clk 0:00:58.5]} 10. Kb1 {[%clk 0:01:38.1]} 10... c5 {[%clk 0:00:57.1]}
11. Bc4 {[%clk 0:00:55.5]} 11... Nc6 {[%clk 0:00:21.8]} 12. Bxd5 {[%clk
0:00:39.2]} 12... Qc8 {[%clk 0:00:18]} 13. Ne2 {[%clk 0:00:18.1]} 13... a5
{[%clk 0:00:17.5]} 14. c4 {[%clk 0:00:11.6]} 14... Rb8 {[%clk 0:00:14]} 15. Rhf1
{[%clk 0:00:10.9]} 15... Nb4 {[%clk 0:00:12.6]} 16. Bg3 {[%clk 0:00:07.2]} 16...
b5 {[%clk 0:00:11.9]} 17. a3 {[%clk 0:00:06.7]} 17... bxc4 {[%clk 0:00:10.3]}
18. axb4 {[%clk 0:00:05.4]} 18... Rxb4 {[%clk 0:00:09.8]} 19. Bxe6 {[%clk
0:00:01.3]} 19... fxe6 {[%clk 0:00:07]} 0-1

[Event "*** Titled Tuesday Blitz"]
[Site "Chess.com"]
[Date "2020.11.10"]
[Round "4"]
[White "Pavlov_Sergey"]
[Black "TimofeevAr"]
[Result "0-1"]
[WhiteElo "2613"]
[BlackElo "2845"]
[TimeControl "180+1"]
[EndTime "10:41:45 PST"]
[Termination "TimofeevAr won by resignation"]

1. c4 {[%clk 0:03:00.9]} 1... c5 {[%clk 0:02:58.9]} 2. Nf3 {[%clk 0:02:59.9]}
2... Nc6 {[%clk 0:02:58.7]} 3. d4 {[%clk 0:02:59.4]} 3... cxd4 {[%clk
0:02:58.8]} 4. Nxd4 {[%clk 0:02:59.9]} 4... Qb6 {[%clk 0:02:59.4]} 5. Nb3 {[%clk
0:02:59.5]} 5... Nf6 {[%clk 0:02:58]} 6. Nc3 {[%clk 0:02:58.5]} 6... e6 {[%clk
0:02:58]} 7. a3 {[%clk 0:02:58.9]} 7... Be7 {[%clk 0:02:54.7]} 8. e4 {[%clk
0:02:59.2]} 8... O-O {[%clk 0:02:54.3]} 9. Be3 {[%clk 0:02:59]} 9... Qc7 {[%clk
0:02:54]} 10. Be2 {[%clk 0:02:59.2]} 10... d6 {[%clk 0:02:53.6]} 11. Rc1 {[%clk
0:02:58.6]} 11... Qd7 {[%clk 0:02:51.7]} 12. O-O {[%clk 0:02:56.6]} 12... b6
{[%clk 0:02:51.7]} 13. Qd2 {[%clk 0:02:30.9]} 13... Bb7 {[%clk 0:02:51.2]} 14.
Rfd1 {[%clk 0:02:31.4]} 14... Rfd8 {[%clk 0:02:50.8]} 15. f3 {[%clk 0:02:28.1]}
15... Qe8 {[%clk 0:02:45]} 16. Nd4 {[%clk 0:02:27.6]} 16... Ne5 {[%clk
0:02:40.4]} 17. Ncb5 {[%clk 0:02:12]} 17... Qd7 {[%clk 0:02:36.2]} 18. b4 {[%clk
0:02:03.3]} 18... a6 {[%clk 0:02:22.3]} 19. Nc3 {[%clk 0:02:02.8]} 19... Rac8
{[%clk 0:02:19.9]} 20. Nb3 {[%clk 0:01:54.9]} 20... Nxc4 {[%clk 0:02:13.8]} 21.
Bxc4 {[%clk 0:01:55.2]} 21... Rxc4 {[%clk 0:02:14]} 22. Bxb6 {[%clk 0:01:55.7]}
22... Re8 {[%clk 0:02:04.1]} 23. Na5 {[%clk 0:01:46.7]} 23... Rcc8 {[%clk
0:02:03.3]} 24. e5 {[%clk 0:01:30.1]} 24... Nd5 {[%clk 0:02:02.9]} 25. Nxb7
{[%clk 0:01:29.9]} 25... Qxb7 {[%clk 0:02:02.5]} 26. Nxd5 {[%clk 0:01:28.9]}
26... exd5 {[%clk 0:02:00.3]} 27. Bd4 {[%clk 0:01:23.5]} 27... dxe5 {[%clk
0:01:54.2]} 28. Bxe5 {[%clk 0:01:18]} 28... Rxc1 {[%clk 0:01:40.8]} 29. Rxc1
{[%clk 0:01:15.1]} 29... Bf8 {[%clk 0:01:40.6]} 30. Bd4 {[%clk 0:01:05.7]} 30...
Qb5 {[%clk 0:01:39.4]} 31. Kf2 {[%clk 0:00:59.3]} 31... h6 {[%clk 0:01:37.6]}
32. Rc3 {[%clk 0:00:41.4]} 32... Bd6 {[%clk 0:01:33.3]} 33. g3 {[%clk
0:00:40.1]} 33... a5 {[%clk 0:01:18.8]} 34. Bc5 {[%clk 0:00:35.1]} 34... axb4
{[%clk 0:01:15.4]} 35. axb4 {[%clk 0:00:34]} 35... Bxc5+ {[%clk 0:00:46.9]} 36.
Rxc5 {[%clk 0:00:32.3]} 36... Qb6 {[%clk 0:00:47.1]} 37. g4 {[%clk 0:00:23.1]}
37... Qd6 {[%clk 0:00:40.1]} 38. Kg2 {[%clk 0:00:21.8]} 38... d4 {[%clk
0:00:40.4]} 39. Rc4 {[%clk 0:00:20.4]} 39... d3 {[%clk 0:00:40.7]} 40. Rc3
{[%clk 0:00:18.6]} 40... Re2+ {[%clk 0:00:40]} 0-1

[Event "*** Titled Tuesday Blitz"]
[Site "Chess.com"]
[Date "2020.11.10"]
[Round "4"]
[White "VladimirPotkin"]
[Black "markberk"]
[Result "1-0"]
[WhiteElo "2654"]
[BlackElo "2440"]
[TimeControl "180+1"]
[EndTime "10:41:47 PST"]
[Termination "VladimirPotkin won on time"]

1. Nf3 {[%clk 0:03:00.9]} 1... Nf6 {[%clk 0:02:58.2]} 2. c4 {[%clk 0:03:00.9]}
2... e6 {[%clk 0:02:57.4]} 3. Nc3 {[%clk 0:03:01.5]} 3... d5 {[%clk 0:02:53.3]}
4. e3 {[%clk 0:03:02.1]} 4... Be7 {[%clk 0:02:48.3]} 5. b3 {[%clk 0:03:01.4]}
5... c5 {[%clk 0:02:43.4]} 6. cxd5 {[%clk 0:02:58.2]} 6... Nxd5 {[%clk
0:02:39.8]} 7. Bb2 {[%clk 0:02:59.1]} 7... Nxc3 {[%clk 0:02:29]} 8. Bxc3 {[%clk
0:02:58.9]} 8... Bf6 {[%clk 0:02:28.9]} 9. Qc2 {[%clk 0:02:59]} 9... Nc6 {[%clk
0:02:09.3]} 10. Rd1 {[%clk 0:02:40.7]} 10... O-O {[%clk 0:01:55.7]} 11. h4
{[%clk 0:02:35.8]} 11... Bxc3 {[%clk 0:01:42.7]} 12. dxc3 {[%clk 0:02:36.7]}
12... Qf6 {[%clk 0:01:39.5]} 13. Ng5 {[%clk 0:02:36.3]} 13... g6 {[%clk
0:01:34]} 14. Ne4 {[%clk 0:02:34.4]} 14... Qe7 {[%clk 0:01:08.5]} 15. Bb5 {[%clk
0:02:34.3]} 15... e5 {[%clk 0:01:03.8]} 16. Nd6 {[%clk 0:01:24.6]} 16... Be6
{[%clk 0:00:52.1]} 17. Bxc6 {[%clk 0:01:13]} 17... bxc6 {[%clk 0:00:50.9]} 18.
h5 {[%clk 0:01:00.6]} 18... Rad8 {[%clk 0:00:44.6]} 19. Ne4 {[%clk 0:01:00.4]}
19... Rxd1+ {[%clk 0:00:43.4]} 20. Qxd1 {[%clk 0:01:01.3]} 20... Rd8 {[%clk
0:00:33.8]} 21. Qf3 {[%clk 0:00:57.8]} 21... f5 {[%clk 0:00:29.1]} 22. hxg6
{[%clk 0:00:24]} 22... fxe4 {[%clk 0:00:28.4]} 23. Qxe4 {[%clk 0:00:24.4]} 23...
h6 {[%clk 0:00:23]} 24. Rxh6 {[%clk 0:00:21.3]} 24... Qd7 {[%clk 0:00:07.1]} 25.
f3 {[%clk 0:00:17.2]} 1-0

[Event "*** Titled Tuesday Blitz"]
[Site "Chess.com"]
[Date "2020.11.10"]
[Round "4"]
[White "mr65"]
[Black "Boudicca64"]
[Result "1-0"]
[WhiteElo "2209"]
[BlackElo "1817"]
[TimeControl "180+1"]
[EndTime "10:41:47 PST"]
[Termination "mr65 won on time"]

1. e4 {[%clk 0:02:44.2]} 1... c5 {[%clk 0:01:36.8]} 2. d4 {[%clk 0:02:39.4]}
2... cxd4 {[%clk 0:01:34.2]} 3. c3 {[%clk 0:02:39.5]} 3... dxc3 {[%clk
0:01:30.6]} 4. Nxc3 {[%clk 0:02:39.4]} 4... e6 {[%clk 0:01:30.9]} 5. Nf3 {[%clk
0:02:39.4]} 5... Ne7 {[%clk 0:01:30.5]} 6. Bc4 {[%clk 0:02:39]} 6... a6 {[%clk
0:01:30.3]} 7. O-O {[%clk 0:02:37.7]} 7... Ng6 {[%clk 0:01:29.1]} 8. Qe2 {[%clk
0:02:35.7]} 8... b5 {[%clk 0:01:27.6]} 9. Bb3 {[%clk 0:02:34.8]} 9... Be7 {[%clk
0:01:27.3]} 10. e5 {[%clk 0:02:24.6]} 10... O-O {[%clk 0:01:25.9]} 11. Ne4
{[%clk 0:02:23.7]} 11... f6 {[%clk 0:01:18.3]} 12. exf6 {[%clk 0:02:22.2]} 12...
gxf6 {[%clk 0:01:16.7]} 13. Bh6 {[%clk 0:02:15.7]} 13... Re8 {[%clk 0:01:14.3]}
14. Rfd1 {[%clk 0:02:11.5]} 14... Qb6 {[%clk 0:01:07.5]} 15. Rac1 {[%clk
0:02:00.2]} 15... Nc6 {[%clk 0:01:05.1]} 16. Nd6 {[%clk 0:01:51.8]} 16... Bxd6
{[%clk 0:00:57.9]} 17. Rxd6 {[%clk 0:01:50.5]} 17... Qc7 {[%clk 0:00:36.8]} 18.
Rcd1 {[%clk 0:01:35.8]} 18... Nce5 {[%clk 0:00:33.7]} 19. Nxe5 {[%clk
0:01:33.6]} 19... fxe5 {[%clk 0:00:32.6]} 20. Qg4 {[%clk 0:01:15.4]} 20... Kh8
{[%clk 0:00:21.3]} 21. h4 {[%clk 0:01:13.4]} 21... Rg8 {[%clk 0:00:19.5]} 22.
Qg5 {[%clk 0:01:02.9]} 22... Qd8 {[%clk 0:00:15.1]} 23. Qxd8 {[%clk 0:01:00.3]}
23... Rxd8 {[%clk 0:00:13.9]} 24. Bxe6 {[%clk 0:01:00]} 24... Re8 {[%clk
0:00:12.3]} 25. Bf7 {[%clk 0:00:50.8]} 25... Re7 {[%clk 0:00:10.8]} 26. Bxg6
{[%clk 0:00:49.3]} 26... hxg6 {[%clk 0:00:10.3]} 27. Rxg6 {[%clk 0:00:48.6]}
27... Kh7 {[%clk 0:00:09.2]} 28. Rdd6 {[%clk 0:00:46]} 28... Bb7 {[%clk
0:00:08.3]} 29. Bg5 {[%clk 0:00:44]} 29... Rg7 {[%clk 0:00:03.5]} 30. Rh6+
{[%clk 0:00:42.2]} 30... Kg8 {[%clk 0:00:02.6]} 31. f3 {[%clk 0:00:35.8]} 31...
Rc8 {[%clk 0:00:02.7]} 32. Bf6 {[%clk 0:00:32.5]} 1-0

[Event "*** Titled Tuesday Blitz"]
[Site "Chess.com"]
[Date "2020.11.10"]
[Round "4"]
[White "Ajedrez_con_German"]
[Black "ErikRonka"]
[Result "0-1"]
[WhiteElo "2533"]
[BlackElo "2401"]
[TimeControl "180+1"]
[EndTime "10:41:48 PST"]
[Termination "ErikRonka won by resignation"]

1. Nf3 {[%clk 0:03:00.9]} 1... d5 {[%clk 0:02:59.6]} 2. b3 {[%clk 0:03:00.5]}
2... Nf6 {[%clk 0:02:58.7]} 3. Bb2 {[%clk 0:02:57.9]} 3... Bg4 {[%clk
0:02:59.1]} 4. e3 {[%clk 0:02:58]} 4... Nbd7 {[%clk 0:02:58.9]} 5. Be2 {[%clk
0:02:58.3]} 5... e6 {[%clk 0:02:59.3]} 6. O-O {[%clk 0:02:58.2]} 6... Bd6 {[%clk
0:02:59.4]} 7. c4 {[%clk 0:02:58]} 7... c6 {[%clk 0:02:59.9]} 8. cxd5 {[%clk
0:02:57.8]} 8... cxd5 {[%clk 0:02:50.6]} 9. d3 {[%clk 0:02:51.7]} 9... O-O
{[%clk 0:02:50.7]} 10. Nc3 {[%clk 0:02:51]} 10... a6 {[%clk 0:02:49.6]} 11. a3
{[%clk 0:02:50.9]} 11... Qe7 {[%clk 0:02:45.4]} 12. b4 {[%clk 0:02:50.2]} 12...
b5 {[%clk 0:02:39.5]} 13. Nd4 {[%clk 0:02:46]} 13... Bxe2 {[%clk 0:02:37.6]} 14.
Qxe2 {[%clk 0:02:45.5]} 14... Rfc8 {[%clk 0:02:36]} 15. Nb3 {[%clk 0:02:41]}
15... Rc7 {[%clk 0:02:27.4]} 16. Rfc1 {[%clk 0:02:35.2]} 16... Nb6 {[%clk
0:02:18.2]} 17. Rc2 {[%clk 0:01:59.2]} 17... Rac8 {[%clk 0:02:05.7]} 18. Rac1
{[%clk 0:01:58]} 18... e5 {[%clk 0:01:31.5]} 19. h3 {[%clk 0:01:37.1]} 19... h6
{[%clk 0:01:29.9]} 20. Nd1 {[%clk 0:01:11.7]} 20... Na4 {[%clk 0:01:26.9]} 21.
Ba1 {[%clk 0:01:09.4]} 21... Nd7 {[%clk 0:01:04.8]} 22. Nb2 {[%clk 0:01:07.5]}
22... Nab6 {[%clk 0:00:50.3]} 23. Rxc7 {[%clk 0:01:04.2]} 23... Rxc7 {[%clk
0:00:50.4]} 24. Rxc7 {[%clk 0:01:04.6]} 24... Bxc7 {[%clk 0:00:51.3]} 25. Qc2
{[%clk 0:01:04.6]} 25... Qd6 {[%clk 0:00:48.2]} 26. Na5 {[%clk 0:01:00.4]} 26...
e4 {[%clk 0:00:41.1]} 27. g3 {[%clk 0:01:00.3]} 27... exd3 {[%clk 0:00:39.9]}
28. Nxd3 {[%clk 0:00:53.3]} 28... Nc4 {[%clk 0:00:36.9]} 29. Qc3 {[%clk
0:00:43.4]} 29... f6 {[%clk 0:00:35.6]} 30. Nf4 {[%clk 0:00:34.7]} 30... Nde5
{[%clk 0:00:29.8]} 31. Nxc4 {[%clk 0:00:32.6]} 31... dxc4 {[%clk 0:00:22.1]} 32.
Qd4 {[%clk 0:00:23.5]} 32... Nf3+ {[%clk 0:00:21.5]} 0-1

[Event "*** Titled Tuesday Blitz"]
[Site "Chess.com"]
[Date "2020.11.10"]
[Round "4"]
[White "Love_craft"]
[Black "Zarikovs1999"]
[Result "0-1"]
[WhiteElo "2580"]
[BlackElo "2373"]
[TimeControl "180+1"]
[EndTime "10:41:48 PST"]
[Termination "Zarikovs1999 won by resignation"]

1. Nf3 {[%clk 0:03:00.9]} 1... Nf6 {[%clk 0:02:56.5]} 2. g3 {[%clk 0:02:59.9]}
2... d5 {[%clk 0:02:55.6]} 3. Bg2 {[%clk 0:03:00.2]} 3... e6 {[%clk 0:02:56.5]}
4. O-O {[%clk 0:03:01]} 4... Be7 {[%clk 0:02:57.1]} 5. d3 {[%clk 0:03:01.9]}
5... O-O {[%clk 0:02:58]} 6. Nbd2 {[%clk 0:03:02.8]} 6... c5 {[%clk 0:02:57.9]}
7. e4 {[%clk 0:03:03.7]} 7... Nc6 {[%clk 0:02:58.8]} 8. e5 {[%clk 0:03:04.2]}
8... Nd7 {[%clk 0:02:58.1]} 9. Re1 {[%clk 0:03:05.1]} 9... Rb8 {[%clk
0:02:57.1]} 10. h4 {[%clk 0:03:04.8]} 10... Qc7 {[%clk 0:02:55.7]} 11. Qe2
{[%clk 0:03:04.7]} 11... b5 {[%clk 0:02:54.9]} 12. Nf1 {[%clk 0:03:05]} 12...
Re8 {[%clk 0:02:54.6]} 13. Bf4 {[%clk 0:03:05]} 13... Bf8 {[%clk 0:02:54.8]} 14.
N1h2 {[%clk 0:03:02.2]} 14... Ba6 {[%clk 0:02:42.2]} 15. Ng4 {[%clk 0:03:01.5]}
15... b4 {[%clk 0:02:42]} 16. h5 {[%clk 0:02:38.2]} 16... h6 {[%clk 0:02:33.1]}
17. Kh2 {[%clk 0:02:18.4]} 17... Bb5 {[%clk 0:02:01]} 18. Qd2 {[%clk 0:01:59.2]}
18... Nd4 {[%clk 0:01:46.8]} 19. Nxd4 {[%clk 0:01:42.2]} 19... cxd4 {[%clk
0:01:46.1]} 20. Bxd5 {[%clk 0:01:01.5]} 20... exd5 {[%clk 0:01:20.6]} 21. e6
{[%clk 0:01:01.5]} 21... Bd6 {[%clk 0:01:20.7]} 22. Bxd6 {[%clk 0:00:04.6]}
22... Qxd6 {[%clk 0:01:20.5]} 23. exd7 {[%clk 0:00:05.1]} 23... Bxd7 {[%clk
0:01:21.4]} 24. f3 {[%clk 0:00:04.1]} 24... f5 {[%clk 0:00:55.5]} 25. Nf2 {[%clk
0:00:02.8]} 25... f4 {[%clk 0:00:56]} 26. g4 {[%clk 0:00:02.8]} 26... Qf6 {[%clk
0:00:56.7]} 27. Rxe8+ {[%clk 0:00:02.4]} 27... Rxe8 {[%clk 0:00:56.2]} 28. Nh3
{[%clk 0:00:02.2]} 28... Re3 {[%clk 0:00:55.2]} 29. Rg1 {[%clk 0:00:01.9]} 29...
Rxf3 {[%clk 0:00:54.8]} 30. Qe1 {[%clk 0:00:01.7]} 30... Re3 {[%clk 0:00:52.2]}
31. Qf2 {[%clk 0:00:02.1]} 31... Qe5 {[%clk 0:00:48.2]} 32. Qxf4 {[%clk
0:00:01.6]} 32... Rxh3+ {[%clk 0:00:47.6]} 33. Kg2 {[%clk 0:00:01.5]} 33... Qxf4
{[%clk 0:00:47.3]} 34. Kxh3 {[%clk 0:00:02]} 34... Qf3+ {[%clk 0:00:47.6]} 35.
Rg3 {[%clk 0:00:01.8]} 35... Qf1+ {[%clk 0:00:47.7]} 36. Kh4 {[%clk 0:00:01.9]}
36... Qf2 {[%clk 0:00:42.7]} 0-1

[Event "*** Titled Tuesday Blitz"]
[Site "Chess.com"]
[Date "2020.11.10"]
[Round "4"]
[White "mamonika"]
[Black "VladaSviridova"]
[Result "1-0"]
[WhiteElo "2025"]
[BlackElo "2245"]
[TimeControl "180+1"]
[EndTime "10:41:49 PST"]
[Termination "mamonika won by resignation"]

1. d4 {[%clk 0:02:37.9]} 1... d5 {[%clk 0:02:59.3]} 2. c4 {[%clk 0:02:37]} 2...
c6 {[%clk 0:02:59]} 3. cxd5 {[%clk 0:02:36.9]} 3... cxd5 {[%clk 0:02:59.2]} 4.
Nc3 {[%clk 0:02:37.2]} 4... Nf6 {[%clk 0:02:59.2]} 5. Bf4 {[%clk 0:02:37.3]}
5... Nc6 {[%clk 0:02:59.4]} 6. Nf3 {[%clk 0:02:36.2]} 6... a6 {[%clk 0:03:00]}
7. e3 {[%clk 0:02:31.9]} 7... Bf5 {[%clk 0:02:57.2]} 8. Bd3 {[%clk 0:02:31.6]}
8... Bxd3 {[%clk 0:02:57.1]} 9. Qxd3 {[%clk 0:02:32.5]} 9... e6 {[%clk
0:02:57.1]} 10. O-O {[%clk 0:02:32.4]} 10... Be7 {[%clk 0:02:57.6]} 11. Ne5
{[%clk 0:02:27]} 11... Rc8 {[%clk 0:02:56]} 12. Nxc6 {[%clk 0:02:24.6]} 12...
Rxc6 {[%clk 0:02:55.9]} 13. f3 {[%clk 0:02:24.8]} 13... O-O {[%clk 0:02:55.2]}
14. e4 {[%clk 0:02:14.6]} 14... Qb6 {[%clk 0:02:22]} 15. Rf2 {[%clk 0:02:01.5]}
15... Rd8 {[%clk 0:02:04.3]} 16. Rd1 {[%clk 0:01:59.7]} 16... h6 {[%clk
0:01:31.2]} 17. h3 {[%clk 0:01:44.6]} 17... a5 {[%clk 0:01:13.8]} 18. g4 {[%clk
0:01:44]} 18... Qa6 {[%clk 0:01:10.3]} 19. Nb5 {[%clk 0:01:40.5]} 19... Rdc8
{[%clk 0:01:07]} 20. a4 {[%clk 0:01:38.7]} 20... Ne8 {[%clk 0:00:56.9]} 21. exd5
{[%clk 0:01:33.7]} 21... exd5 {[%clk 0:00:56.7]} 22. Re2 {[%clk 0:01:31.8]}
22... Bf6 {[%clk 0:00:54.2]} 23. Qf5 {[%clk 0:01:27]} 23... Re6 {[%clk
0:00:35.9]} 24. Rde1 {[%clk 0:01:21.6]} 24... Rcc6 {[%clk 0:00:23.9]} 25. Qxd5
{[%clk 0:01:16.3]} 25... Qb6 {[%clk 0:00:21.5]} 26. Rxe6 {[%clk 0:01:13.3]}
26... Rxe6 {[%clk 0:00:21.3]} 27. Rxe6 {[%clk 0:01:09.8]} 27... fxe6 {[%clk
0:00:21.5]} 28. Qd7 {[%clk 0:01:09.1]} 28... Qc6 {[%clk 0:00:20.5]} 29. Qxc6
{[%clk 0:01:02.2]} 29... bxc6 {[%clk 0:00:21.4]} 30. Na7 {[%clk 0:01:02.4]}
30... Bxd4+ {[%clk 0:00:21.5]} 31. Kf1 {[%clk 0:00:58.8]} 31... c5 {[%clk
0:00:21.4]} 32. Nc6 {[%clk 0:00:54.8]} 32... Bxb2 {[%clk 0:00:21.5]} 33. Nxa5
{[%clk 0:00:54.9]} 33... Nf6 {[%clk 0:00:21]} 34. Nc4 {[%clk 0:00:52.7]} 34...
Bc3 {[%clk 0:00:17.8]} 35. Be3 {[%clk 0:00:50.1]} 35... Nd7 {[%clk 0:00:17.2]}
36. a5 {[%clk 0:00:49.3]} 36... Kf7 {[%clk 0:00:14.6]} 37. a6 {[%clk 0:00:49.5]}
37... Bd4 {[%clk 0:00:11.3]} 38. Bxd4 {[%clk 0:00:48.4]} 38... cxd4 {[%clk
0:00:12.2]} 39. a7 {[%clk 0:00:48.9]} 39... Nc5 {[%clk 0:00:12.2]} 40. a8=Q
{[%clk 0:00:48.2]} 40... d3 {[%clk 0:00:12.3]} 41. Ke1 {[%clk 0:00:45.3]} 1-0

[Event "*** Titled Tuesday Blitz"]
[Site "Chess.com"]
[Date "2020.11.10"]
[Round "4"]
[White "Chessdreamer2020"]
[Black "1977Ivan"]
[Result "1/2-1/2"]
[WhiteElo "2518"]
[BlackElo "2703"]
[TimeControl "180+1"]
[EndTime "10:41:50 PST"]
[Termination "Game drawn by repetition"]

1. e4 {[%clk 0:03:00.9]} 1... c5 {[%clk 0:02:59]} 2. Nf3 {[%clk 0:03:00.1]} 2...
e6 {[%clk 0:02:59.5]} 3. b3 {[%clk 0:02:59.9]} 3... Nc6 {[%clk 0:02:50.7]} 4.
Bb5 {[%clk 0:02:59]} 4... Nge7 {[%clk 0:02:41.9]} 5. Bb2 {[%clk 0:02:59.4]} 5...
a6 {[%clk 0:02:42.1]} 6. Bxc6 {[%clk 0:03:00]} 6... Nxc6 {[%clk 0:02:42.9]} 7.
O-O {[%clk 0:03:00.4]} 7... d5 {[%clk 0:02:41.2]} 8. exd5 {[%clk 0:03:00]} 8...
exd5 {[%clk 0:02:42.1]} 9. Re1+ {[%clk 0:02:58.8]} 9... Be6 {[%clk 0:02:21.5]}
10. d4 {[%clk 0:02:59]} 10... Be7 {[%clk 0:02:20.9]} 11. dxc5 {[%clk 0:02:58.8]}
11... Bxc5 {[%clk 0:02:16.7]} 12. Bxg7 {[%clk 0:02:44.3]} 12... Rg8 {[%clk
0:02:15.6]} 13. Bd4 {[%clk 0:02:42.4]} 13... Nxd4 {[%clk 0:02:12.1]} 14. Nxd4
{[%clk 0:02:42.5]} 14... Qf6 {[%clk 0:02:06.4]} 15. c3 {[%clk 0:02:38]} 15...
O-O-O {[%clk 0:02:06.1]} 16. b4 {[%clk 0:02:36.9]} 16... Bb6 {[%clk 0:01:52.6]}
17. Na3 {[%clk 0:02:33.4]} 17... Bg4 {[%clk 0:01:31.6]} 18. Qd3 {[%clk 0:02:25]}
18... Qg5 {[%clk 0:01:05.7]} 19. Qg3 {[%clk 0:02:04.8]} 19... Bc7 {[%clk
0:00:52.4]} 20. Qe3 {[%clk 0:01:48.5]} 20... Qh5 {[%clk 0:00:33.6]} 21. g3
{[%clk 0:01:43.7]} 21... f5 {[%clk 0:00:33.4]} 22. Ne6 {[%clk 0:01:30.1]} 22...
f4 {[%clk 0:00:20.8]} 23. Nxf4 {[%clk 0:01:29.4]} 23... Bxf4 {[%clk 0:00:17.2]}
24. Qxf4 {[%clk 0:01:29.3]} 24... Rdf8 {[%clk 0:00:17.8]} 25. Qe5 {[%clk
0:01:27.3]} 25... Qh3 {[%clk 0:00:15.9]} 26. Re3 {[%clk 0:01:21.1]} 26... Rxf2
{[%clk 0:00:13.2]} 27. Kxf2 {[%clk 0:01:18.5]} 27... Qxh2+ {[%clk 0:00:13.3]}
28. Ke1 {[%clk 0:01:18.6]} 28... Rf8 {[%clk 0:00:13.2]} 29. Re2 {[%clk
0:01:10.2]} 29... Bxe2 {[%clk 0:00:09.7]} 30. Qxe2 {[%clk 0:01:09.5]} 30... Qg1+
{[%clk 0:00:09.1]} 31. Kd2 {[%clk 0:01:09.6]} 31... Qxa1 {[%clk 0:00:09.5]} 32.
Qe6+ {[%clk 0:01:07.2]} 32... Kb8 {[%clk 0:00:09.3]} 33. Qd6+ {[%clk 0:01:07]}
33... Ka7 {[%clk 0:00:08.9]} 34. Qxf8 {[%clk 0:01:07.5]} 34... Qxa2+ {[%clk
0:00:05.3]} 35. Nc2 {[%clk 0:01:08]} 35... d4 {[%clk 0:00:05.3]} 36. Qc5+ {[%clk
0:01:08.1]} 36... Kb8 {[%clk 0:00:05.7]} 37. Qxd4 {[%clk 0:01:08.6]} 37... Qe6
{[%clk 0:00:05.7]} 38. g4 {[%clk 0:01:05.3]} 38... Qh6+ {[%clk 0:00:04.7]} 39.
Ne3 {[%clk 0:01:04.1]} 39... Qh2+ {[%clk 0:00:05.1]} 40. Kd3 {[%clk 0:01:04.6]}
40... Qh1 {[%clk 0:00:04.8]} 41. Qd8+ {[%clk 0:01:03.5]} 41... Ka7 {[%clk
0:00:04.9]} 42. Qd4+ {[%clk 0:01:03.9]} 42... Kb8 {[%clk 0:00:04.9]} 43. Kc4
{[%clk 0:01:03.6]} 43... Qc6+ {[%clk 0:00:03.7]} 44. Kd3 {[%clk 0:00:59.1]}
44... Qh1 {[%clk 0:00:02.8]} 1/2-1/2